Cogmind - Beta 14 @@@ ROGUE MODE // 2024.09.17 @ 17:37:24 Player: Maulwurf Result: Destroyed by G-47 Trooper with Particle Gun Performance ------------- Evolutions (3) 1500 Regions Visited (7) 1400 Robots Destroyed (39) 195 Value Destroyed (1099) 1099 Prototype IDs (1) 20 Alien Tech Used (0) 0 Bonus (526) 526 TOTAL SCORE: 4740 Bonus ------- High Alert Combat Kills 26 Entered DSFs 500 Cogmind --------- Core Integrity 0/700 Matter 16/300 Energy 100/100 System Corruption 0% Temperature Cool (9) Movement Core (350) Ox6 Location -7/DSF Parts ------- > --- POWER (1) -------- (None) > --- PROPULSION (4) --- (None) > --- UTILITY (3) ------ Large Storage Unit > --- WEAPON (5) ------- (None) > --- INVENTORY (15) --- Nuclear Core VSS Leg Improved Cooling System Light Armor Plating Heavy Particle Gun Light Assault Rifle Peak State ------------ > --- POWER ------------ Light Angular Momentum Engine > --- PROPULSION ------- Light Treads > --- UTILITY ---------- Large Storage Unit Improved Terrain Scanner Hardened Medium Armor Plating > --- WEAPON ----------- Beam Rifle EM Pulse Cannon Rocket Launcher Missile Launcher > --- INVENTORY -------- Ion Engine Light Armor Plating Heavy Particle Gun Light Assault Rifle Shotgun Improved Assault Rifle Rocket Launcher [Rating: 24] Favorites ----------- Power Ion Engine Engine Ion Engine Propulsion Aluminum Leg Treads Light Treads Leg Aluminum Leg Utility Large Storage Unit Device Sensor Array Storage Large Storage Unit Protection Hardened Medium Armor Plating Weapon Shotgun Energy Gun EM Pulse Gun Energy Cannon EM Pulse Cannon Ballistic Gun Shotgun Launcher Rocket Launcher Build | -11 -10 -10 -10 -9 -8 -7 -7 ------- Run | Yrd Mat Min Exi Min Mat Fac DSF Slots Evolved 6 | . . . . . 4 2 . Power . | . . . . . . . . Propulsion 2 | . . . . . 1 1 . Utility 1 | . . . . . 1 . . Weapon 3 | . . . . . 2 1 . Parts Attached 37 | 7 2 . . 1 21 . 6 Power 3 | 1 . . . . 1 . 1 Engine 3 | 1 . . . . 1 . 1 Core . | . . . . . . . . Reactor . | . . . . . . . . Propulsion 7 | 2 . . . . 5 . . Treads 2 | . . . . . 2 . . Leg 5 | 2 . . . . 3 . . Wheel . | . . . . . . . . Hover . | . . . . . . . . Flight . | . . . . . . . . Utility 8 | 2 2 . . . 4 . . Device 4 | 1 1 . . . 2 . . Storage 3 | 1 1 . . . 1 . . Processor . | . . . . . . . . Hackware . | . . . . . . . . Protection 1 | . . . . . 1 . . Artifact . | . . . . . . . . Weapon 19 | 2 . . . 1 11 . 5 Energy Gun 5 | 1 . . . . 4 . . Energy Cannon 1 | . . . . . 1 . . Ballistic Gun 9 | 1 . . . 1 3 . 4 Ballistic Cannon . | . . . . . . . . Launcher 4 | . . . . . 3 . 1 Special Weapon . | . . . . . . . . Impact Weapon . | . . . . . . . . Slashing Weapon . | . . . . . . . . Piercing Weapon . | . . . . . . . . Special Melee Weapon . | . . . . . . . . Unidentified Prototypes 1 | . . . . . . . 1 Parts Lost 28 | . . . . . 15 . 13 Power 3 | . . . . . 1 . 2 Propulsion 6 | . . . . . 5 . 1 Utility 4 | . . . . . 2 . 2 Weapon 15 | . . . . . 7 . 8 Highest Loss Streak 10 | . . . . . 10 . 7 To Critical Strikes . | . . . . . . . . Average Slot Usage (%) 87 | . 100 100 100 99 95 69 41 Engine 9 | . 14 14 14 14 9 7 3 Treads 1 | . . . . . 1 7 3 Leg 19 | . 28 28 28 28 22 . . Device 9 | . 14 14 14 14 8 7 1 Storage 13 | . 14 14 14 14 17 7 7 Protection 1 | . . . . . . 7 3 Energy Gun 11 | . 14 14 14 14 12 7 5 Energy Cannon 1 | . . . . . . 7 2 Ballistic Gun 13 | . 14 14 14 13 19 . 6 Launcher 3 | . . . . . 2 15 6 Peak Build Rating 24 | 9 9 9 9 10 24 24 24 Average Rating 14 | 5 7 9 9 9 18 24 14 On Entrance 11 | . 9 9 9 9 10 24 24 Naked Turns . | . . . . . . . . Heaviest Build 57 | 15 30 30 30 31 57 57 57 Greatest Support 35 | 20 20 20 20 20 35 20 20 Greatest Overweight (x) 11 | . 1 1 1 1 2 2 11 Average Overweight (x) 1 | . . 1 1 1 1 2 4 Largest Inventory Capacity 15 | 8 15 15 15 15 15 15 15 Average Capacity 14 | 7 14 15 15 15 15 15 15 Most Carried 15 | 6 14 14 14 15 15 8 12 Average Carried 10 | 3 6 14 14 14 12 8 8 Final Capacity 15 | 8 15 15 15 15 15 15 15 Final Carried 15 | 4 14 14 14 15 8 8 6 Class Distribution -------------------- 41% | Mutant 36% | Skirmisher 18% | Tank 3% | Gunner Dominant Class ---------------- Mutant | -10/Materials Mutant | -10/Mines Mutant | -10/Exiles Mutant | -9/Mines Skirmisher | -8/Materials Tank | -7/Factory Gunner | -7/DSF Resources | -11 -10 -10 -10 -9 -8 -7 -7 ----------- Run | Yrd Mat Min Exi Min Mat Fac DSF Matter Collected 874 | 236 174 . . 40 407 . 17 Remotely . | . . . . . . . . Salvage Created 1013 | 30 97 . . . 742 . 144 Parts 74 | 2 12 . . . 51 . 9 Haulers Intercepted 1 | . . . . . 1 . . Recyclers Shooed . | . . . . . . . . Parts Field Recycled . | . . . . . . . . Retrieved Matter . | . . . . . . . . Parts Self-Destructed . | . . . . . . . . Prevented . | . . . . . . . . Kills | -11 -10 -10 -10 -9 -8 -7 -7 ------- Run | Yrd Mat Min Exi Min Mat Fac DSF Combat Hostiles Destroyed 33 | . 4 . . . 25 . 4 Guns 21 | . 4 . . . 14 . 3 Cannons 1 | . . . . . . . 1 AOE 11 | . . . . . 11 . . Classes Destroyed 11 | 1 2 . . . 8 . . Worker 1 | . . . . . 1 . . Tunneler 1 | 1 . . . . . . . Hauler 1 | . . . . . 1 . . Watcher 3 | . 2 . . . 1 . . Swarmer 16 | . 4 . . . 12 . . Grunt 7 | . . . . . 6 . 1 Protector 1 | . . . . . 1 . . Sentry 2 | . . . . . 2 . . Specialist 4 | . . . . . 2 . 2 Hunter 1 | . . . . . 1 . . Heavy 2 | . . . . . 1 . 1 Best Kill Streak 8 | 1 2 . . . 8 . 2 Combat Bots Only 8 | . 2 . . . 8 . 2 Max Kills in Single Turn 3 | 1 1 . . . 3 . 1 Gunslinging 1 | . . . . . 1 . . Exploded 2 | . . . . . 2 . . Melee . | . . . . . . . . Uniques/NPCs Destroyed . | . . . . . . . . Combat | -11 -10 -10 -10 -9 -8 -7 -7 -------- Run | Yrd Mat Min Exi Min Mat Fac DSF Hostile Shots Fired 239 | . 12 . . . 115 . 112 Missed 68 | . 5 . . . 38 . 25 Damage Taken 3846 | . 57 . . . 1861 . 1928 Core 1005 | . 7 . . . 283 . 715 Absorbed by Shields . | . . . . . . . . Regen/Repaired (Parts) 31 | . . . . . 31 . . Core Remaining (%) 81 | 100 . . . 97 48 . . Volleys Fired 72 | 9 11 . . . 37 . 15 Largest 5 | 2 2 . . . 4 . 5 Hottest 162 | 60 60 . . . 157 . 162 Shots Fired 207 | 17 22 . . . 122 . 46 Gun 179 | 17 22 . . . 103 . 37 Cannon 2 | . . . . . . . 2 Launcher 26 | . . . . . 19 . 7 Special . | . . . . . . . . Kinetic 114 | 9 11 . . . 70 . 24 Thermal 22 | . . . . . 9 . 13 Explosive 26 | . . . . . 19 . 7 Electromagnetic 45 | 8 11 . . . 24 . 2 Robot Hit Streak 15 | 8 3 . . . 15 . 10 Robot Miss Streak 5 | 3 4 . . . 5 . 5 Penetration Max . | . . . . . . . . Secondary Targets 2 | . . . . . 2 . . Max Gunslinging Chain 2 | . . . . . 2 . . Shots Hit Robots 130 | 12 8 . . . 81 . 29 Core Hits 77 | 1 7 . . . 55 . 14 Critical Kills 1 | . . . . . 1 . . Critical Parts Destroyed . | . . . . . . . . Critical Strikes 1 | . . . . . 1 . . Destroy 1 | . . . . . 1 . . Melee Attacks . | . . . . . . . . Impact . | . . . . . . . . Slashing . | . . . . . . . . Piercing . | . . . . . . . . Sneak Attacks . | . . . . . . . . Combat Hostiles . | . . . . . . . . Follow-up Attacks . | . . . . . . . . Damage Inflicted 2839 | 168 140 . . . 1901 . 630 Guns 1612 | 168 106 . . . 947 . 391 Cannons 22 | . . . . . . . 22 Explosions 1205 | . 34 . . . 954 . 217 Melee . | . . . . . . . . Ramming . | . . . . . . . . Kinetic 1075 | 97 36 . . . 682 . 260 Thermal 360 | . 34 . . . 195 . 131 Explosive 1048 | . . . . . 831 . 217 Electromagnetic 356 | 71 70 . . . 193 . 22 Impact . | . . . . . . . . Slashing . | . . . . . . . . Piercing . | . . . . . . . . Highest Corruption 14 | . . . . . 14 . . Average Corruption 14 | . . . . . 14 . . Corruption Purged . | . . . . . . . . Corruption Blocked . | . . . . . . . . Effects 3 | . . . . . 3 . . Matter Fused 2 | . . . . . 2 . . Data Loss (minor) 1 | . . . . . 1 . . Overload Shots . | . . . . . . . . Overflow Damage 17 | . . . . . 17 . . Projectiles . | . . . . . . . . Explosions 17 | . . . . . 17 . . Melee . | . . . . . . . . Knockbacks . | . . . . . . . . Impact . | . . . . . . . . Kinetic . | . . . . . . . . Secondary . | . . . . . . . . Self-Inflicted Damage 30 | . . . . . 30 . . Shots 1 | . . . . . 1 . . Rammed . | . . . . . . . . Targets Rammed . | . . . . . . . . Kicked . | . . . . . . . . Crushed . | . . . . . . . . Highest Temperature 196 | . . . . . 196 . 15 Average Temperature 74 | . . . . . 77 . 7 Received Heat Transfer 630 | . . . . . 297 . 333 Siege Activations . | . . . . . . . . Robots Corrupted . | . . . . . . . . Combat Hostiles . | . . . . . . . . Parts Fried 2 | . 2 . . . . . . Impact Corruptions . | . . . . . . . . Robots Melted . | . . . . . . . . Combat Hostiles . | . . . . . . . . Parts Melted . | . . . . . . . . Heat Transferred 726 | . 50 . . . 343 . 333 Parts Sabotaged . | . . . . . . . . Parts Stolen . | . . . . . . . . Parts Stripped . | . . . . . . . . Power Chain Reactions 2 | . 1 . . . 1 . . Alert | -11 -10 -10 -10 -9 -8 -7 -7 ------- Run | Yrd Mat Min Exi Min Mat Fac DSF Peak Influence 408 | 5 175 67 . . 408 119 138 Initial 114 | . 3 67 . . . 114 83 Average 124 | 1 74 67 . . 204 114 90 Maximum Alert Level 2 | . . . . . 2 . . Low Security (%) 76 | 100 100 100 . 100 46 100 100 Level 1 19 | . . . . . 46 . . Level 2 3 | . . . . . 7 . . Level 3 . | . . . . . . . . Level 4 . | . . . . . . . . Level 5 . | . . . . . . . . High Security . | . . . . . . . . Max Security . | . . . . . . . . Squads Dispatched 8 | . 1 . . 1 4 . 2 Investigation 1 | . . . . . 1 . . Extermination . | . . . . . . . . Reinforcement 5 | . 1 . . . 2 . 2 Assault 2 | . . . . 1 1 . . Garrison . | . . . . . . . . Intercept . | . . . . . . . . Searches Triggered . | . . . . . . . . Construction Impeded . | . . . . . . . . Haulers Reinforced . | . . . . . . . . Active Scanning Responses . | . . . . . . . . Cargo Convoy Interrupts . | . . . . . . . . Stealth | -11 -10 -10 -10 -9 -8 -7 -7 --------- Run | Yrd Mat Min Exi Min Mat Fac DSF Distress Signals 3 | . . . . . 3 . . Communications Jammed . | . . . . . . . . Distress Signals . | . . . . . . . . Times Spotted 55 | . 11 . . . 34 . 10 Peak Tracking Total 11 | . 4 . . . 11 . 5 Tactical Retreats 3 | . 2 . . . . . 1 Traps | -11 -10 -10 -10 -9 -8 -7 -7 ------- Run | Yrd Mat Min Exi Min Mat Fac DSF Traps Triggered 1 | . . . . . . . 1 Indirectly . | . . . . . . . . Trap Hack Attempts . | . . . . . . . . Triggered . | . . . . . . . . Disarmed . | . . . . . . . . Reprogrammed . | . . . . . . . . Reused . | . . . . . . . . Traps Extracted . | . . . . . . . . Installed . | . . . . . . . . Triggered . | . . . . . . . . Machines | -11 -10 -10 -10 -9 -8 -7 -7 ---------- Run | Yrd Mat Min Exi Min Mat Fac DSF Machines Disabled 1 | . . . . . 1 . . Max in Single Turn 1 | . . . . . 1 . . Machines Repaired . | . . . . . . . . Machines Dismantled . | . . . . . . . . Machines Sabotaged . | . . . . . . . . Overloaded Fab Kills . | . . . . . . . . Hacking | -11 -10 -10 -10 -9 -8 -7 -7 --------- Run | Yrd Mat Min Exi Min Mat Fac DSF Machines Accessed 7 | . 3 . . . 3 1 . Terminals 5 | . 3 . . . 1 1 . Fabricators . | . . . . . . . . Repair Stations 1 | . . . . . 1 . . Recycling Units . | . . . . . . . . Scanalyzers 1 | . . . . . 1 . . Garrison Access . | . . . . . . . . Total Hacks 13 | . 4 . . . 8 1 . Successful 10 | . 2 . . . 7 1 . Failed 3 | . 2 . . . 1 . . Catastrophic . | . . . . . . . . Database Lockouts . | . . . . . . . . Manual 5 | . 4 . . . 1 . . Terminals 7 | . 4 . . . 2 1 . Fabricators . | . . . . . . . . Repair Stations 3 | . . . . . 3 . . Recycling Units . | . . . . . . . . Scanalyzers 3 | . . . . . 3 . . Garrison Access . | . . . . . . . . Terminal Hacks 3 | . . . . . 2 1 . Open DSF 1 | . . . . . . 1 . Level Access Points 1 | . . . . . 1 . . Alert Level 1 | . . . . . 1 . . Fabricator Hacks . | . . . . . . . . Repair Station Hacks 2 | . . . . . 2 . . Scan Component 1 | . . . . . 1 . . Repair 1 | . . . . . 1 . . Recycling Unit Hacks . | . . . . . . . . Scanalyzer 3 | . . . . . 3 . . Insert Component 1 | . . . . . 1 . . Analyze 2 | . . . . . 2 . . Garrison Access Hacks . | . . . . . . . . Unauthorized Hacks 2 | . 2 . . . . . . Terminals 2 | . 2 . . . . . . Assimilate 2 | . 2 . . . . . . Fabricators . | . . . . . . . . Repair Stations . | . . . . . . . . Recycling Units . | . . . . . . . . Scanalyzers . | . . . . . . . . Garrison Access . | . . . . . . . . Data Cores Recovered . | . . . . . . . . Used . | . . . . . . . . Hacking Detections 2 | . 1 . . . 1 . . Full Trace Events 1 | . . . . . 1 . . Feedback Events . | . . . . . . . . Feedback Blocked . | . . . . . . . . Robot Schematics Acquired . | . . . . . . . . Robots Built . | . . . . . . . . Authchips . | . . . . . . . . Time . | . . . . . . . . Total Robot Build Rating . | . . . . . . . . Part Schematics Acquired 1 | . . . . . 1 . . Parts Built . | . . . . . . . . Authchips . | . . . . . . . . Time . | . . . . . . . . Total Part Build Rating . | . . . . . . . . Parts Repaired 1 | . . . . . 1 . . Time 26 | . . . . . 26 . . Parts Recycled . | . . . . . . . . Recycled Matter . | . . . . . . . . Retrieved Matter . | . . . . . . . . Retrieved Components . | . . . . . . . . Parts Scanalyzed 1 | . . . . . 1 . . Part Schematics Acquired 1 | . . . . . 1 . . Parts Damaged . | . . . . . . . . Bothacking | -11 -10 -10 -10 -9 -8 -7 -7 ------------ Run | Yrd Mat Min Exi Min Mat Fac DSF Used RIF Installer . | . . . . . . . . Robots Hacked . | . . . . . . . . Non-combat . | . . . . . . . . Combat . | . . . . . . . . Robot Hacks Applied . | . . . . . . . . Relay Couplers Released . | . . . . . . . . Fabnet Peak Effective % . | . . . . . . . . Robots Rewired . | . . . . . . . . Allies Hacked . | . . . . . . . . Hacks Repelled . | . . . . . . . . Allies | -11 -10 -10 -10 -9 -8 -7 -7 -------- Run | Yrd Mat Min Exi Min Mat Fac DSF Total Allies 1 | . . . . 1 . . . Largest Group 1 | . . . . 1 1 . . Highest-Rated Group 31 | . . . . 31 31 . . Highest-Rated Ally 31 | . . . . 31 31 . . Total Orders . | . . . . . . . . Ally Attacks 4 | . . . . . 4 . . Total Damage 21 | . . . . . 21 . . Kills . | . . . . . . . . Allies Corrupted . | . . . . . . . . Allies Melted . | . . . . . . . . Intel | -11 -10 -10 -10 -9 -8 -7 -7 ------- Run | Yrd Mat Min Exi Min Mat Fac DSF Robot Analysis Total . | . . . . . . . . Derelict Logs Recovered . | . . . . . . . . Drone Launches . | . . . . . . . . Drone Recoveries . | . . . . . . . . Exploration | -11 -10 -10 -10 -9 -8 -7 -7 ------------- Run | Yrd Mat Min Exi Min Mat Fac DSF Turns Passed 1992 | 115 344 79 52 168 829 181 224 Spaces Moved 776 | 61 146 41 28 84 316 57 43 Core 20 | 5 . . . . . . 15 Treads 108 | . . . . . 23 57 28 Legs 648 | 56 146 41 28 84 293 . . Wheels . | . . . . . . . . Hover . | . . . . . . . . Flight . | . . . . . . . . Fastest Speed 50 | 50 120 190 190 190 120 320 240 Average Speed 206 | 114 183 190 190 190 199 320 373 Slowest Speed 600 | 120 190 190 190 190 320 320 600 Overloaded Moves . | . . . . . . . . Propulsion Burnouts . | . . . . . . . . Robots Hopped . | . . . . . . . . Cave-ins Triggered 1 | . . . . . 1 . . Exploration Rate (%) 17 | 4 29 15 8 18 31 1 37 Regions Visited 7 Branch Regions 3 Pre-discovered Areas . | . . . . . . . . Known Exits Taken 2 | . . . . . 1 1 . Unknown Exits Taken 5 | 1 1 1 1 1 . . . Scrap Searched 1 | . . . . 1 . . . Spaces Dug . | . . . . . . . . Terrain Destroyed 103 | . 2 . . . 71 . 30 Melee . | . . . . . . . . Projectile . | . . . . . . . . AOE 103 | . 2 . . . 71 . 30 Terrain Rammed . | . . . . . . . . Walls Destroyed . | . . . . . . . . Machines Disabled . | . . . . . . . . Actions | -11 -10 -10 -10 -9 -8 -7 -7 --------- Run | Yrd Mat Min Exi Min Mat Fac DSF Total 1019 | 89 201 43 27 94 432 57 76 Wait 85 | 2 29 3 . 6 36 1 8 Move 769 | 60 145 40 27 83 315 56 43 Hop . | . . . . . . . . Pick Up 46 | 11 12 . . 2 17 . 4 Fast Attach . | . . . . . . . . Attach 33 | 7 . . . 1 19 . 6 Detach 1 | . . . . 1 . . . Swap 4 | . 2 . . . 2 . . Drop 9 | . 2 . . 1 6 . . Fire 72 | 9 11 . . . 37 . 15 Melee . | . . . . . . . . Ram . | . . . . . . . . Kick . | . . . . . . . . Crush . | . . . . . . . . Escape Stasis . | . . . . . . . . Rewire . | . . . . . . . . Trap . | . . . . . . . . Miscellaneous . | . . . . . . . . Route ------- -11/Scrapyard -10/Materials -10/Mines -10/Exiles -9/Mines -8/Materials (discovered 3 exits: *Fac x3) -7/Factory -7/DSF History --------- Turn | Location | Event 7 | -11/Scrapyard | Discovered new exit (range 15) 116 | -11/Scrapyard | Entered Materials 300 | -10/Materials | Build established: Mutant 344 | -10/Materials | Discovered new exit (range 11) 460 | -10/Materials | Entered Mines 464 | -10/Mines | Met a Derelict bent on vengeance 530 | -10/Mines | Deemed a non-threat by the Exiles lab entrance 532 | -10/Mines | Discovered new exit (range 5) 539 | -10/Mines | Entered Exiles 564 | -10/Exiles | Discovered new exit (range 15) 591 | -10/Exiles | Entered Mines 725 | -9/Mines | Discovered new exit (range 10) 733 | -9/Mines | Met a Derelict testing a Signal Generator 754 | -9/Mines | Found Signal Generator 759 | -9/Mines | Entered Materials 759 | -8/Materials | Accompanied by 1 ally 759 | -8/Materials | Evolved 4 slots: Propulsion x1, Utility x1, Weapon x2 813 | -8/Materials | Repaired EM Pulse Gun? 917 | -8/Materials | Destroyed 8 combat bots 1044 | -8/Materials | Build established: Skirmisher 1212 | -8/Materials | Lost 3 parts (1n2w) 1314 | -8/Materials | Identified exit to Factory 1504 | -8/Materials | Crushed by falling debris 1504 | -8/Materials | Core integrity fell below 50% 1504 | -8/Materials | System corruption reached 10% 1535 | -8/Materials | Lost 10 parts (1p3n2u4w) 1588 | -8/Materials | Entered Factory 1588 | -7/Factory | Evolved 2 slots: Propulsion x1, Weapon x1 1762 | -7/Factory | Identified exit to DSF 1769 | -7/Factory | Entered DSF 1784 | -7/DSF | Build established: Tank 1806 | -7/DSF | Additional patrols routed to DSF 1910 | -7/DSF | Lost 7 parts (1p1n2u3w) 1936 | -7/DSF | Core integrity fell below 50% 1987 | -7/DSF | Core integrity fell below 20% 1993 | -7/DSF | Destroyed by G-47 Trooper with Particle Gun Last Messages --------------- 01920_ Slug penetrates Wall. 01925_ Ion Engine destroyed. 01935_ H-61 Shepherd destroyed. 01939_ G-47 Trooper destroyed. 01943_ Acquired 3 matter. 01947_ Critical hit (Burn: +37). 01949_ Acquired 5 matter. 01953_ Critical hit (Burn: +37). 01953_ Beam Rifle destroyed. 01953_ Critical hit (Burn: +37). 01956_ The unstable cave ceiling collapses. 01964_ Acquired 1 matter. 01966_ Rocket Launcher destroyed. 01968_ C-30 ARC bursts open, deploying its payload. 01968_ S-27 Virus unfolds itself. 01969_ Acquired 2 matter. 01972_ The unstable cave ceiling collapses. 01979_ Hpw. Shotgun destroyed. 01981_ Critical hit (Burn: +37). 01985_ Imp. Assault Rifle destroyed. Map ----- +----------------------------------------------------+ | ?????????????????????????????????????????? | | ?????????????????????????????????????????? | | ?????????????????????????????????????????? | | ?????????????????????????????????????????? | | ?????????????????????????????????????????? | | ?????????????????????????????????????????? | | ?????????????????????????????????????????? | | ?????????????????????????????????????????? | | ?????????????????????????????????????????? | | ?????????????????????????????????????????? | | ??????????????????????????????????????? | | ??????????????????????????????????????? | | ????????????? ????????????????????????? | | ??????????? ????????????????????? | | #????? ???? ????????????????????? | | #??????????# ???? ???????????????? | | # #?#??????### #???????????????????? | | &????????#!! %]] ???????????????????? | | &????????#!! %]] ???????????????????? | | &??????###! !]] #???????????????????? | | # ##?##??# # ? ?????????????????? | | & &??????# !! ???????????????????? | | & &???????# !! ???????????????????? | | # #?####### !! #######?????????????? | | # ###&&# # % #!!#??? ###??????? | | " ##&&# ### #@!## ""#??????? | | " *% % s% """??????? | | " !! ss ""#??????? | | """"##&&#&&&# /// =#!!g;g!##"""""#??????? | | """"######### /// [ #####;#??""""#??????? | | ##"##???#???#####%####????##???##????????? | | ?#"#????????????###??????????????????????? | | ?""#?????????????????????????????????????? | | ?##??????????????????????????????????????? | | ???#?????#??#????????????????????????????? | | ???????#???????????????#?????????????????? | | ??????#??????????????????????????????????? | | ????????????#????????????????????????????? | | | | | | | | | | | | | | | | | | | | | | | | | +----------------------------------------------------+ Best States ------------- Heat Dissipation 34 Energy Generation 18 Energy Capacity 250 Matter Stores 400 Matter Capacity 400 Sight Range 16 Robot Scan Range 15 Terrain Scan Range 16 Terrain Scan Density 10 Armor Coverage 225 Evasion (%) 55 Recoil Reduction 1 Item Schematics ----------------- Imp. Terrain Scanner | -8/Materials | Scanalyzed Robot Schematics ------------------ None Fabricated ------------ Nothing Alien Tech Used ----------------- None Achievements -------------- None Challenges ------------ None Game ------ Seed ReflectiveCloakRedirector Manual? 0 Play Time 00:25:43 Cumulative 19.5 hours Start 2024.09.16 @ 21:46:43 End 2024.09.17 @ 17:37:24 Sessions 2 Manual Loads 0 Difficulty Rogue Special Mode None Game No. 40 Rogue 40 Adventurer 0 Explorer 0 Win Type - Total 0 Types 0/0/0/0/0/0/0/0/0 Lore% 14 Gallery% 16 Achievement% 20 Wizard Run 0 Options --------- Layout 0 ASCII 0 Keyboard 1 Movement Numpad Keybinds 0 Fullscreen 1 Font 18/SmallcapsGlow Map View 76x50 Zoom Use 0% Tactical HUD 1 Map Filters NONE Filters NONE Steam 1 RUN: 932605da-2d98-49e5-ac42-f93c992163ea